lending/lending_fUSD_20240202
["ID","MTS","AMOUNT","RATE_DAILY","PERIOD"]
[313194515,1706914253605,-500.0,0.00022867,2]
[313194516,1706914253616,-500.0,0.00022867,2]
[313194517,1706914253627,-500.0,0.00022867,2]
[313194518,1706914253637,-532.03485778,0.00022867,2]
[313194519,1706914253646,-500.0,0.00022867,2]
[313194520,1706914253655,-500.0,0.00022867,2]
[313194521,1706914253665,-500.0,0.00022867,2]
[313194522,1706914253674,-360.49177327,0.00022867,2]
[313194523,1706914253683,-500.0,0.00022867,2]
[313194524,1706914253693,-253.55862277,0.00022867,2]
[313194525,1706914253702,-517.22185194,0.00022867,2]
[313194526,1706914253711,-500.0,0.00022867,2]
[313194527,1706914253721,-500.0,0.00022867,2]
[313194528,1706914253731,-287.87926756,0.00022867,2]
[313194529,1706914253742,-500.0,0.00022867,2]
[313194530,1706914253751,-500.0,0.00022867,2]
[313194531,1706914253760,-500.0,0.00022867,2]
[313194532,1706914253769,-311.15469412,0.00022867,2]
[313194533,1706914253779,-500.0,0.00022867,2]
[313194534,1706914253788,-500.0,0.00022867,2]
[313194535,1706914253879,-500.0,0.00022867,2]
[313194536,1706914253903,-338.00801174,0.00022867,2]
[313194537,1706914253913,-500.0,0.00022867,2]
[313194538,1706914253923,-853.03,0.00022867,2]
[313194539,1706914253932,-538.92310558,0.00022867,2]
[313194540,1706914253942,-503.17884181,0.00022867,2]
[313194541,1706914253951,-500.0,0.00022867,2]
[313194542,1706914253961,-500.0,0.00022867,2]
[313194543,1706914253972,-500.0,0.00022867,2]
[313194544,1706914253982,-500.0,0.00022867,2]
[313194545,1706914253991,-500.0,0.00022867,2]
[313194546,1706914254001,-531.92159729,0.00022867,2]
[313194547,1706914254011,-836.31,0.00022867,2]
[313194548,1706914254021,-390.56738151,0.00022867,2]
[313194549,1706914254030,-534.60476886,0.00022867,2]
[313194550,1706914254040,-150.0,0.00022874,2]
[313194551,1706914254049,-195.90438214,0.00022897,2]
[313194552,1706914254059,-155.0,0.00022897,2]
[313194553,1706914254068,-212.45542696,0.00022897,2]
[313194554,1706914254077,-249.52274701,0.00022897,2]
[313194555,1706914254086,-340.34480773,0.00022897,5]
[313194556,1706914254095,-570.68525373,0.00022897,2]
[313194557,1706914254105,-150.0,0.00022898,2]
[313194558,1706914254115,-150.0,0.00022899,2]
[313194559,1706914254124,-6393.47643146,0.000229,2]
[313194560,1706914254133,-457.24173514,0.000229,2]
[313194561,1706914254142,-173.387,0.00022903,2]
[313194562,1706914254151,-516.806,0.00022903,2]
[313194563,1706914254161,-368.0,0.00022903,2]
[313194564,1706914254170,-1862.0,0.00022903,2]
[313194565,1706914254180,-2867.0,0.00022903,2]
[313194566,1706914254189,-950.0,0.00022903,2]
[313194567,1706914254199,-851.0,0.00022903,2]
[313194568,1706914254208,-1250.0,0.00022903,2]
[313194569,1706914254217,-191.857,0.00022903,2]
[313194570,1706914254226,-215.0,0.00022903,2]
[313194571,1706914254236,-1232.0,0.00022903,2]
[313194572,1706914254246,-1001.0,0.00022903,2]
[313194573,1706914254462,-428.0,0.00022903,2]
[313194574,1706914254472,-236.0,0.00022903,2]
[313194575,1706914254481,-1941.0,0.00022903,2]
[313194576,1706914254491,-499.673,0.00022903,2]
[313194577,1706914254500,-1138.0,0.00022903,2]
[313194578,1706914254509,-320.0,0.00022903,2]
[313194579,1706914254519,-252.942,0.00022903,2]
[313194580,1706914254528,-861.999,0.00022903,2]
[313194581,1706914254537,-342.0,0.00022903,2]
[313194582,1706914254546,-8133.0,0.00022903,2]
[313194583,1706914254556,-19779.0,0.00022903,2]
[313194584,1706914254565,-164.167,0.00022903,2]
[313194585,1706914254574,-4193.0,0.00022903,2]
[313194586,1706914254584,-2282.0,0.00022903,2]
[313194587,1706914254593,-7386.0,0.00022903,2]
[313194588,1706914254603,-2916.0,0.00022903,2]
[313194589,1706914254613,-150.0,0.00022903,2]
[313194590,1706914254622,-1051.425,0.00022903,2]
[313194591,1706914254632,-150.0,0.00022903,2]
[313194592,1706914254642,-247.415,0.00022903,2]
[313194593,1706914254650,-150.0,0.00022924,2]
[313194594,1706914254661,-261.96492302,0.0002293,2]
[313194595,1706914254671,-150.0,0.00022949,2]
[313194596,1706914254680,-1500.0,0.00022953,2]
[313194597,1706914254689,-732.06,0.0002296,2]
[313194598,1706914254698,-1001.30078599,0.0002297,2]
[313194599,1706914254707,-500.0,0.0002297,9]
[313194600,1706914254716,-460.16007315,0.0002297,2]
[313194601,1706914254725,-500.0,0.0002297,2]
[313194602,1706914254734,-204.71697354,0.0002297,2]
[313194603,1706914254744,-500.0,0.0002297,2]
[313194604,1706914254753,-500.0,0.0002297,2]
[313194605,1706914254762,-500.0,0.0002297,2]
[313194606,1706914254772,-324.00870694,0.0002297,2]
[313194607,1706914254781,-157.25,0.00022973,2]
[313194608,1706914254791,-500.0,0.00022977,2]
[313194609,1706914254800,-501.6691,0.00022977,2]
[313194610,1706914254810,-1000.0,0.00022977,2]
[313194611,1706914254819,-271.4136,0.00022977,2]
[313194612,1706914254828,-1904.60208748,0.00022988,3]
[313194613,1706914254838,-55804.01700894,0.00022988,2]
[313194614,1706914254847,-500.0,0.00022996,2]
[313194615,1706914254857,-155.09877376,0.00022997,2]
[313194616,1706914254866,-3037.94768246,0.00022997,2]
[313194617,1706914254876,-245.54677836,0.00022997,2]
[313194618,1706914254885,-155.0,0.00022997,2]
[313194619,1706914254894,-155.04366642,0.00022997,2]
[313194620,1706914254904,-303.04688425,0.00022997,2]
[313194621,1706914254913,-210.8048654,0.00022997,2]
[313194622,1706914254923,-222.39757032,0.00022997,2]
[313194623,1706914254932,-155.0,0.00022997,2]
[313194624,1706914254942,-176.01255733,0.00022997,2]
[313194625,1706914254950,-239.88481281,0.00022997,2]
[313194626,1706914254959,-158.8993738,0.00022997,2]
[313194627,1706914254970,-2062.26373216,0.00022998,2]
[313194628,1706914254979,-155.0,0.00022998,2]
[313194629,1706914254988,-184.44865705,0.00022998,2]
[313194630,1706914254997,-220.06807054,0.00022998,2]
[313194631,1706914255006,-155.0,0.00022998,2]
[313194632,1706914255016,-151.0203,0.00022998,3]
[313194633,1706914255026,-151.0203,0.00022998,3]
[313194634,1706914255035,-151.0203,0.00022998,3]
[313194635,1706914255045,-151.0203,0.00022998,3]
[313194636,1706914255054,-151.0203,0.00022998,3]
[313194637,1706914255065,-151.0203,0.00022998,3]
[313194638,1706914255075,-151.0203,0.00022998,3]
[313194639,1706914255085,-151.0203,0.00022998,3]
[313194640,1706914255095,-151.0203,0.00022998,3]
[313194641,1706914255105,-43535.28470938,0.00022999,2]
[313194642,1706914255114,-500.0,0.00022999,2]
[313194643,1706914255123,-2686.8878005,0.00022999,2]
[313194644,1706914255135,-500.0,0.00022999,2]
[313194645,1706914255146,-500.0,0.00022999,2]
[313194646,1706914255156,-500.0,0.00022999,2]
[313194647,1706914255165,-500.0,0.00022999,2]
[313194648,1706914255175,-500.0,0.00022999,2]
[313194649,1706914255186,-500.0,0.00022999,2]
[313194650,1706914255196,-500.0,0.00022999,2]
[313194651,1706914255205,-500.0,0.00022999,2]
[313194652,1706914255214,-500.0,0.00022999,2]
[313194653,1706914255224,-500.0,0.00022999,2]
[313194654,1706914255233,-500.0,0.00022999,2]
[313194655,1706914255244,-500.0,0.00022999,2]
[313194656,1706914255255,-500.0,0.00022999,2]
[313194657,1706914255265,-500.0,0.00022999,2]
[313194658,1706914255274,-155.74875581,0.00022999,2]
[313194659,1706914255284,-720.85,0.00023,2]
[313194660,1706914255294,-489016.4863776,0.00023,3]
[313194661,1706914255303,-550502.02953979,0.00023,2]
[313194662,1706914255313,-284.18685088,0.00023,2]
[313194663,1706914255324,-155.96864151,0.00023,2]
[313194664,1706914255333,-265.82049859,0.00023,2]
[313194665,1706914255342,-1790958.08800581,0.00023,2]
[313194666,1706914255907,-279.65240947,0.0002259,2]
[313194667,1706914255917,-500.0,0.00022591,2]
[313194668,1706914255926,-506.42780374,0.00022865,2]
[313194669,1706914255935,-302.67724056,0.000229,6]
[313194670,1706914255944,-716.34254622,0.00023,2]
[313194671,1706914255972,-49320.7531773,0.00023,2]
[313194672,1706914255981,-2601.92040923,0.00023,2]
[313194673,1706914255990,-31480.39005177,0.00023,2]
[313194674,1706914256001,-26242.64820361,0.00023,2]
[313194675,1706914256015,-8545.056,0.00023,2]
[313194676,1706914256400,1130.60364675,0.00022408,2]
[313194677,1706914258532,245000.0,0.0002249,2]
[313194678,1706914265333,488.88,0.00022317,2]
[313194679,1706914306295,5000.0,0.00022493,2]
[313194680,1706914306467,1000.0,0.0002249,2]
[313194681,1706914359029,254.09824576,0.00020697,2]
[313194682,1706914380311,1543.39593485,0.00022077,2]
[313194683,1706914444299,3176.81093122,0.00021981,2]
[313194684,1706914483179,161.73858553,0.00022489,2]
[313194685,1706914503274,200.0721745,0.00022077,2]
[313194686,1706914517422,176.1,0.00021833,2]
[313194687,1706914584957,3695.26,0.000225,2]
[313194688,1706914592142,301.03,0.00019903,2]
[313194689,1706914592356,301.03,0.00022167,2]
[313194690,1706914622715,531.12,0.00021827,2]
[313194691,1706914719508,150.0,0.00022,2]
[313194692,1706914758346,407.4,0.00021821,2]
[313194693,1706914806795,500.0,0.000225,2]
[313194695,1706914893756,205.0,0.00022338,2]
[313194696,1706914953757,204.0,0.00022338,2]
[313194697,1706915006248,285.29,0.00019919,2]
[313194698,1706915006645,285.29,0.00022183,2]
[313194699,1706915039936,186.07,0.00021838,2]
[313194700,1706915042568,150.0044,0.00022488,2]
[313194701,1706915151703,575.1,0.00021837,2]
[313194702,1706915174810,339.5,0.00021836,2]
[313194703,1706915258646,200.0,0.000223,8]
[313194704,1706915260626,500.0,0.000224,8]
[313194705,1706915295393,400.0,0.000223,8]
[313194706,1706915297736,800.0,0.000224,8]
[313194707,1706915378352,161.73858553,0.00022488,2]
[313194726,1706915431617,-437.93269508,0.000225,8]
[313194727,1706915431628,-362.06730492,0.000225,8]
[313194728,1706915431641,-608.46736188,0.000225,8]
[313194729,1706915431653,-591.53263812,0.000225,8]
[313194730,1706915431662,-150.0,0.00022587,2]
[313194731,1706915431673,-150.0,0.00022587,2]
[313194732,1706915431684,-260.89301711,0.00022588,2]
[313194733,1706915431695,-314.02168928,0.00022588,2]
[313194734,1706915431707,-138.92529361,0.00022588,2]
[313194735,1706915431717,-711.39,0.00022588,2]
[313194736,1706915431726,-720.82,0.00022588,2]
[313194737,1706915431735,-713.79,0.00022588,2]
[313194738,1706915431744,-722.12,0.00022588,2]
[313194739,1706915431754,-710.32,0.00022589,2]
[313194740,1706915431764,-736.0,0.00022589,2]
[313194741,1706915431773,-593.1933529,0.00022589,2]
[313194742,1706915431783,-500.0,0.00022589,2]
[313194743,1706915431792,-585.91949895,0.00022589,2]
[313194744,1706915431803,-500.0,0.00022589,2]
[313194745,1706915431813,-500.0,0.00022589,2]
[313194746,1706915431822,-500.0,0.00022589,2]
[313194747,1706915431831,-570.509597,0.00022589,2]
[313194748,1706915431840,-500.0,0.00022589,2]
[313194749,1706915431850,-721.33,0.00022589,2]
[313194751,1706915431859,-716.33,0.00022589,2]
[313194753,1706915431868,-733.86,0.00022589,2]
[313194755,1706915431877,-730.54,0.00022589,2]
[313194757,1706915431886,-726.62,0.00022589,2]
[313194759,1706915431895,-289.90308074,0.00022591,2]
[313194761,1706915431904,-289.90308074,0.00022591,2]
[313194763,1706915431914,-289.90308074,0.00022591,2]
[313194765,1706915431923,-289.90308074,0.00022591,2]
[313194767,1706915431932,-289.90308074,0.00022591,2]
[313194769,1706915431941,-289.90308074,0.00022591,2]
[313194771,1706915431950,-289.90308074,0.00022591,2]
[313194773,1706915431959,-289.90308074,0.00022591,2]
[313194775,1706915431968,-289.90308074,0.00022591,2]
[313194777,1706915431977,-289.90308074,0.00022591,2]
[313194779,1706915431986,-289.90308074,0.00022591,2]
[313194781,1706915431996,-289.90308074,0.00022591,2]
[313194783,1706915432005,-289.90308074,0.00022591,2]
[313194785,1706915432014,-289.90308074,0.00022591,2]
[313194787,1706915432023,-289.90308074,0.00022591,2]
[313194789,1706915432033,-289.90308074,0.00022591,2]
[313194791,1706915432042,-289.90308074,0.00022591,2]
[313194793,1706915432052,-289.90308074,0.00022591,2]
[313194795,1706915432062,-289.90308074,0.00022591,2]
[313194797,1706915432071,-289.90308074,0.00022591,2]
[313194799,1706915432081,-289.90308074,0.00022591,2]
[313194801,1706915432090,-289.90308074,0.00022591,2]
[313194803,1706915432100,-289.90308074,0.00022591,2]
[313194805,1706915432109,-289.90308074,0.00022591,2]
[313194807,1706915432118,-289.90308074,0.00022591,2]
[313194809,1706915432127,-289.90308074,0.00022591,2]
[313194811,1706915432136,-289.90308074,0.00022591,2]
[313194813,1706915432146,-289.90308074,0.00022591,2]
[313194815,1706915432155,-289.90308074,0.00022591,2]
[313194817,1706915432166,-289.90308074,0.00022591,2]
[313194819,1706915432175,-289.90308074,0.00022591,2]
[313194821,1706915432184,-289.90308074,0.00022591,2]
[313194823,1706915432193,-289.90308074,0.00022591,2]
[313194825,1706915432202,-289.90308074,0.00022591,2]
[313194827,1706915432212,-289.90308074,0.00022591,2]
[313194829,1706915432221,-569.80226444,0.00022591,9]
[313194831,1706915432230,-527.65058143,0.00022591,2]
[313194833,1706915432240,-500.0,0.00022591,2]
[313194835,1706915432249,-500.0,0.00022591,2]
[313194837,1706915432258,-154.96976274,0.00022591,2]
[313194839,1706915432268,-519.60300551,0.00022591,2]
[313194841,1706915432278,-500.0,0.00022591,2]
[313194843,1706915432287,-500.0,0.00022591,2]
[313194845,1706915432296,-500.0,0.00022591,2]
[313194847,1706915432305,-500.0,0.00022591,2]
[313194849,1706915432314,-500.0,0.00022591,2]
[313194851,1706915432324,-781.94,0.00022591,2]
[313194853,1706915432334,-500.0,0.00022591,2]
[313194855,1706915432343,-500.0,0.00022591,2]
[313194857,1706915432352,-500.0,0.00022591,2]
[313194859,1706915432361,-500.0,0.00022591,2]
[313194861,1706915432370,-501.62948592,0.00022591,2]
[313194863,1706915432379,-500.0,0.00022591,2]
[313194865,1706915432389,-500.0,0.00022591,2]
[313194867,1706915432398,-766.62,0.00022591,2]
[313194869,1706915432407,-499.99,0.00022591,2]
[313194871,1706915432417,-1000.0,0.000226,8]
[313194873,1706915432426,-1600.0,0.000226,8]
[313194875,1706915432435,-1300.0,0.000227,8]
[313194877,1706915432444,-2100.0,0.000227,8]
[313194879,1706915432454,-190.34485394,0.00022745,3]
[313194881,1706915432464,-888.3733,0.00022745,2]
[313194883,1706915432473,-1000.0,0.00022762,2]
[313194885,1706915432482,-4221.6086,0.00022763,2]
[313194887,1706915432491,-200.0,0.00022765,2]
[313194889,1706915432501,-800.0,0.00022765,2]
[313194891,1706915432510,-150.0,0.00022774,2]
[313194893,1706915432520,-150.0,0.00022777,2]
[313194895,1706915432530,-1883.14629776,0.00022793,2]
[313194897,1706915432539,-6735.6551,0.00022799,2]
[313194899,1706915432548,-5379.83046121,0.00022799,2]
[313194901,1706915432557,-178.02648422,0.00022799,2]
[313194903,1706915432567,-157.17895382,0.00022799,2]
[313194905,1706915432576,-200.0,0.000228,8]
[313194907,1706915432586,-400.0,0.000228,8]
[313194909,1706915432595,-5379.83046113,0.00022808,2]
[313194911,1706915432603,-1883.14629772,0.00022808,2]
[313194912,1706915432612,-5379.83046113,0.00022817,2]
[313194914,1706915432621,-1883.14629772,0.00022824,2]
[313194916,1706915432630,-157.17895381,0.00022824,2]
[313194919,1706915432644,-5379.83046113,0.00022827,2]
[313194921,1706915432656,-5379.83046113,0.00022836,2]
[313194922,1706915432666,-150.0,0.00022837,2]
[313194924,1706915432676,-1883.14629772,0.00022839,2]
[313194926,1706915432685,-150.0,0.00022839,2]
[313194928,1706915432695,-5379.83046113,0.00022845,2]
[313194930,1706915432703,-150.0,0.00022846,2]
[313194932,1706915432713,-157.17895381,0.0002285,2]
[313194934,1706915432723,-5379.83046113,0.00022854,2]
[313194936,1706915432732,-500.0,0.00022863,2]
[313194938,1706915432741,-571.25458677,0.00022863,2]
[313194940,1706915432751,-500.0,0.00022863,2]
[313194941,1706915432761,-500.0,0.00022863,2]
[313194944,1706915432771,-500.0,0.00022863,2]
[313194946,1706915432780,-5379.83046113,0.00022863,2]
[313194948,1706915432790,-500.0,0.00022865,2]
[313194950,1706915432799,-500.0,0.00022865,2]
[313194952,1706915432808,-500.0,0.00022865,2]
[313194954,1706915432817,-500.0,0.00022865,2]
[313194955,1706915432827,-500.0,0.00022865,2]
[313194957,1706915432836,-500.0,0.00022865,2]
[313194959,1706915432844,-516.61805298,0.00022865,2]
[313194961,1706915432853,-781.94,0.00022865,2]
[313194963,1706915432862,-535.13472036,0.00022865,2]
[313194965,1706915432871,-500.0,0.00022865,2]
[313194967,1706915432880,-500.0,0.00022865,2]
[313194969,1706915432890,-500.0,0.00022865,2]
[313194970,1706915432900,-377.642763,0.00022865,2]
[313194971,1706915432910,-500.0,0.00022865,2]
[313194972,1706915432919,-766.62,0.00022865,2]
[313194973,1706915432928,-150.0,0.00022866,2]
[313194974,1706915432938,-5379.83046113,0.00022872,2]
[313194975,1706915432947,-157.17895381,0.00022875,2]
[313194976,1706915432957,-150.0,0.00022875,2]
[313194977,1706915432966,-1000.0,0.0002288,2]
[313194978,1706915432976,-5379.83046113,0.00022882,2]
[313194979,1706915432985,-5379.83046113,0.00022891,2]
[313194980,1706915432994,-500.0,0.00022892,2]
[313194981,1706915433004,-500.0,0.00022892,2]
[313194982,1706915433013,-500.0,0.00022892,2]
[313194983,1706915433024,-500.0,0.00022892,2]
[313194984,1706915433033,-500.0,0.00022892,2]
[313194985,1706915433042,-500.0,0.00022892,2]
[313194986,1706915433051,-500.0,0.00022892,2]
[313194987,1706915433061,-500.0,0.00022892,2]
[313194988,1706915433070,-734.93,0.00022892,2]
[313194989,1706915433079,-500.0,0.00022892,2]
[313194990,1706915433088,-1057.31,0.00022892,2]
[313194991,1706915433097,-1032.23,0.00022892,2]
[313194992,1706915433106,-500.0,0.00022892,2]
[313194993,1706915433115,-500.0,0.00022892,2]
[313194994,1706915433124,-500.0,0.00022892,2]
[313194995,1706915433133,-500.0,0.00022892,2]
[313194996,1706915433142,-500.0,0.00022892,2]
[313194997,1706915433151,-500.0,0.00022892,2]
[313194998,1706915433160,-500.0,0.00022892,2]
[313194999,1706915433169,-500.0,0.00022892,2]
[313195000,1706915433178,-500.0,0.00022892,2]
[313195001,1706915433187,-500.0,0.00022892,2]
[313195002,1706915433196,-500.0,0.00022892,2]
[313195003,1706915433205,-500.0,0.00022892,2]
[313195004,1706915433214,-500.0,0.00022892,2]
[313195005,1706915433223,-500.0,0.00022892,2]
[313195006,1706915433232,-500.0,0.00022892,2]
[313195007,1706915433242,-658.67,0.00022892,2]
[313195008,1706915433251,-500.0,0.00022892,2]
[313195009,1706915433261,-500.0,0.00022892,2]
[313195010,1706915433272,-500.0,0.00022892,2]
[313195011,1706915433281,-500.0,0.00022892,2]
[313195012,1706915433291,-265.61975228,0.00022892,2]
[313195013,1706915433300,-500.0,0.00022892,2]
[313195014,1706915433310,-500.0,0.00022892,2]
[313195015,1706915433319,-500.0,0.00022892,2]
[313195016,1706915433328,-500.0,0.00022892,2]
[313195017,1706915433454,-500.0,0.00022892,2]
[313195018,1706915433464,-500.0,0.00022892,2]
[313195019,1706915433473,-500.0,0.00022892,2]
[313195020,1706915433482,-605.59445111,0.00022892,2]
[313195021,1706915433491,-2720.64,0.00022892,2]
[313195022,1706915433500,-553.93668549,0.00022892,2]
[313195023,1706915433509,-500.0,0.00022892,2]
[313195024,1706915433518,-500.0,0.00022892,2]
[313195025,1706915433527,-1495.73,0.00022892,5]
[313195026,1706915433537,-500.0,0.00022892,2]
[313195027,1706915433546,-500.0,0.00022892,2]
[313195028,1706915433554,-1213.46,0.00022892,2]
[313195029,1706915433563,-989.85,0.00022892,2]
[313195030,1706915433572,-500.0,0.00022892,2]
[313195031,1706915433582,-500.74134217,0.00022892,2]
[313195032,1706915433591,-500.0,0.00022892,2]
[313195033,1706915433600,-623.90616443,0.00022892,2]
[313195034,1706915433609,-500.0,0.00022892,2]
[313195035,1706915433618,-251.08709128,0.00022892,2]
[313195036,1706915433628,-500.0,0.00022892,2]
[313195037,1706915433639,-402.0039373,0.00022892,2]
[313195038,1706915433648,-362.28189178,0.00022892,2]
[313195039,1706915433658,-500.0,0.00022892,2]
[313195040,1706915433667,-500.0,0.00022892,2]
[313195041,1706915433675,-500.0,0.00022892,2]
[313195042,1706915433686,-297.32370406,0.00022892,2]
[313195043,1706915433695,-500.0,0.00022892,2]
[313195044,1706915433704,-45398.50693925,0.00022893,2]
[313195045,1706915433718,-600.0,0.00022893,2]
[313195046,1706915433732,-525.22839655,0.00022893,2]
[313195047,1706915433746,-562.35288802,0.00022893,2]
[313195048,1706915433766,-727.69660047,0.00022893,2]
[313195049,1706915433777,-640.14719797,0.00022893,2]
[313195050,1706915433790,-15660.48690264,0.00022893,2]
[313195051,1706915433807,-1926.7925768,0.00022893,2]
[313195052,1706915433818,-1210.24940779,0.00022893,2]
[313195053,1706915433834,-440.61503046,0.00022893,2]
[313195054,1706915433848,-1703.3328388,0.00022893,2]
[313195055,1706915433859,-2592.97272,0.00022893,2]
[313195062,1706915437623,-1883.14629772,0.00022854,2]
[313195063,1706915437632,-500.0,0.00022892,2]
[313195064,1706915437647,-500.0,0.00022892,2]
[313195065,1706915437658,-134596.25541748,0.00022893,2]
[313195066,1706915437672,-26100.14360489,0.00022893,2]
[313195067,1706915437731,-22670.05926997,0.00022893,2]
[313195068,1706915437743,-2349.81200394,0.00022893,2]
[313195069,1706915437790,-4446.36052512,0.00022893,2]
[313195070,1706915437834,-2669.36644625,0.00022893,2]
[313195071,1706915437851,-609.17786829,0.00022869,2]
[313195143,1706915440847,-900.54635,0.00022869,2]
[313195144,1706915442802,-373.42207943,0.00022869,2]
[313195145,1706915442811,-500.0,0.00022892,2]
[313195146,1706915442821,-494.36792057,0.00022892,2]
[313195147,1706915442857,-5.63207943,0.00022892,2]
[313195148,1706915442866,-277539.58007598,0.00022893,2]
[313195149,1706915442915,-1883.14629772,0.00022885,2]
[313195150,1706915442924,-2197.40251288,0.00022893,2]
[313195151,1706915443024,-16797.50068755,0.00022893,2]
[313195152,1706915443036,-402.89105763,0.00022893,2]
[313195153,1706915443047,-4505.56053191,0.00022893,2]
[313195154,1706915443080,-757.91521654,0.00022893,2]
[313195155,1706915443136,-298.98632475,0.00022892,2]
[313195156,1706915443148,-201.01367525,0.00022892,2]
[313195157,1706915443157,-412.53578515,0.00022893,2]
[313195163,1706915445658,-438.75008216,0.00022892,2]
[313195164,1706915445776,-126.52363876,0.00022892,2]
[313195165,1706915445786,-2411.52067998,0.00022893,2]
[313195166,1706915445799,-2478.82925186,0.00022893,2]
[313195167,1706915445938,-456.002,0.00022893,2]
[313195168,1706915445952,-4769.84576349,0.00022893,2]
[313195422,1706915451226,1076.86921658,0.00022435,2]
[313195423,1706915456446,250.0,0.00021927,2]
[313195424,1706915510248,200.0,0.00021817,2]
[313195425,1706915515845,472.5176,0.000224,2]
[313195426,1706915522293,151.95,0.00021914,2]
[313195427,1706915542951,291.43,0.00019993,2]
[313195428,1706915543171,291.43,0.00022257,2]
[313195429,1706915598134,209.31,0.0002206,2]
[313195430,1706915601142,539.92,0.00021896,2]
[313195431,1706915666918,282.91,0.00021894,2]
[313195432,1706915851382,175.25,0.00021915,2]
[313195433,1706915912975,186.07,0.00021901,2]
[313195434,1706915974106,205.0,0.00022476,2]
[313195435,1706916015986,568.06,0.00021832,2]
[313195436,1706916033267,262.28,0.00019899,2]
[313195437,1706916033644,262.28,0.00022163,2]
[313195438,1706916094514,235.75,0.00021805,2]
[313195439,1706916462950,236.05,0.00019871,2]
[313195440,1706916463354,236.05,0.00022135,2]
[313195441,1706916468201,300.0,0.000223,8]
[313195442,1706916470487,700.0,0.000224,8]
[313195443,1706916484619,267.51538496,0.000223,2]
[313195444,1706916502619,267.51538496,0.000223,2]
[313195445,1706916518618,267.51538496,0.000223,2]
[313195446,1706916536631,267.51538496,0.000223,2]
[313195447,1706916558615,267.51538496,0.000223,2]
[313195448,1706916568499,196.45,0.00021768,2]
[313195449,1706916578754,267.51538496,0.000223,2]
[313195450,1706916588101,545.55,0.00021783,2]
[313195451,1706916594624,267.51538496,0.000223,2]
[313195452,1706916614621,267.51538496,0.000223,2]
[313195469,1706916631799,-1100.0,0.000225,8]
[313195470,1706916631808,-627.68104,0.000226,8]
[313195476,1706916631853,-351.10664586,0.000226,8]
[313195483,1706916631911,-372.04136223,0.000226,8]
[313195484,1706916631923,-149.17095191,0.000226,8]
[313195485,1706916631933,-161.73858553,0.00022612,2]
[313195486,1706916631942,-120.55533741,0.00022691,2]
[313195487,1706916631954,-379.44466259,0.00022691,2]
[313195488,1706916631964,-220.68145811,0.00022691,2]
[313195489,1706916631979,-279.31854189,0.00022691,2]
[313195490,1706916631989,-500.0,0.00022691,2]
[313195491,1706916632000,-311.86561897,0.00022691,2]
[313195492,1706916632011,-500.0,0.00022691,2]
[313195493,1706916632026,-506.5128141,0.00022691,2]
[313195494,1706916632035,-559.43470767,0.00022691,2]
[313195495,1706916632048,-71.79529233,0.00022691,2]
[313195496,1706916632058,-500.0,0.00022691,2]
[313195497,1706916632068,-500.0,0.00022691,2]
[313195498,1706916632076,-112.61564747,0.00022691,2]
[313195502,1706916632116,-387.38435253,0.00022691,2]
[313195504,1706916632125,-2607.28,0.00022691,2]
[313195505,1706916632134,-500.0,0.00022691,2]
[313195506,1706916632143,-500.0,0.00022691,2]
[313195507,1706916632152,-1000.0,0.00022692,2]
[313195508,1706916632161,-16737.84212297,0.00022692,2]